fUST/lending_fUST_20250318
["ID","MTS","AMOUNT","RATE_DAILY","PERIOD"]
[356323350,1742267441391,-227.4561024,8.219e-05,2]
[356323351,1742267441400,-500.0,8.219e-05,2]
[356323352,1742267441411,-526.50568906,8.219e-05,2]
[356323353,1742267441420,-500.0,8.219e-05,2]
[356323354,1742267441431,-500.0,8.219e-05,2]
[356323355,1742267441442,-1101.25,8.219e-05,2]
[356323356,1742267441452,-1370.57,8.219e-05,2]
[356323357,1742267441463,-500.0,8.219e-05,2]
[356323358,1742267441475,-914.49,8.219e-05,2]
[356323359,1742267441485,-651.26,8.219e-05,2]
[356323360,1742267441494,-500.0,8.219e-05,2]
[356323361,1742267441504,-500.0,8.219e-05,2]
[356323362,1742267441514,-500.0,8.219e-05,2]
[356323363,1742267441523,-7526.94,8.219e-05,2]
[356323364,1742267441533,-6397.51,8.219e-05,2]
[356323365,1742267441543,-950.16,8.219e-05,2]
[356323366,1742267441554,-500.0,8.219e-05,2]
[356323367,1742267441564,-500.0,8.219e-05,2]
[356323368,1742267441575,-826.57,8.219e-05,2]
[356323369,1742267441586,-892.27,8.219e-05,2]
[356323370,1742267441596,-1150.69,8.219e-05,2]
[356323371,1742267441606,-1315.66,8.219e-05,2]
[356323372,1742267441617,-500.0,8.219e-05,2]
[356323373,1742267441628,-2385.78,8.219e-05,2]
[356323374,1742267441639,-631.3,8.219e-05,2]
[356323375,1742267441650,-930.69,8.219e-05,2]
[356323376,1742267441661,-809.85,8.219e-05,2]
[356323377,1742267441671,-500.0,8.219e-05,2]
[356323378,1742267441682,-500.0,8.219e-05,2]
[356323379,1742267441693,-5661.64,8.219e-05,2]
[356323380,1742267441703,-764.95,8.219e-05,2]
[356323381,1742267441714,-673.41,8.219e-05,2]
[356323382,1742267441725,-500.0,8.219e-05,2]
[356323383,1742267441739,-500.0,8.219e-05,2]
[356323384,1742267441750,-1508.34,8.219e-05,2]
[356323385,1742267441760,-500.0,8.219e-05,2]
[356323386,1742267441771,-500.0,8.219e-05,2]
[356323387,1742267441782,-518.63530967,8.219e-05,2]
[356323388,1742267441792,-3408.8,8.219e-05,2]
[356323389,1742267441802,-500.0,8.219e-05,2]
[356323390,1742267441813,-869.65,8.219e-05,2]
[356323391,1742267441824,-400.85342945,8.219e-05,2]
[356323392,1742267441833,-500.0,8.219e-05,2]
[356323393,1742267441844,-3947.45,8.219e-05,2]
[356323394,1742267441854,-1987.4,8.219e-05,2]
[356323395,1742267441864,-1568.63,8.219e-05,2]
[356323396,1742267441873,-500.0,8.219e-05,2]
[356323397,1742267441885,-500.0,8.219e-05,2]
[356323398,1742267441896,-674.5,8.219e-05,2]
[356323399,1742267441907,-943.96,8.219e-05,2]
[356323400,1742267441917,-500.0,8.219e-05,2]
[356323401,1742267441927,-313.21988578,8.287e-05,2]
[356323402,1742267441938,-399.0,8.319e-05,2]
[356323403,1742267441948,-313.21988578,8.355e-05,2]
[356323404,1742267441960,-835.11200367,8.365e-05,2]
[356323405,1742267441971,-60043.19324089,8.389e-05,2]
[356323406,1742267442131,-0.00201997,8.389e-05,2]
[356323426,1742267444130,-500.0,8.219e-05,2]
[356323427,1742267444141,-34800.76404966,8.389e-05,2]
[356323444,1742267601370,3478.22849,0.0001515,120]
[356323445,1742267632900,-198.59968475,6.655e-05,2]
[356323446,1742267632923,-28.93759351,7.266e-05,2]
[356323451,1742267892670,-297.2889598,7.266e-05,2]
[356323452,1742267947375,-150.0,7.266e-05,2]
[356323453,1742268003234,-150.0,7.266e-05,2]
[356323454,1742268064274,-150.0,7.266e-05,2]
[356323455,1742268070634,-150.0,7.266e-05,2]
[356323456,1742268071724,-150.0,7.266e-05,2]
[356323457,1742268123155,-167.9666415,7.266e-05,2]
[356323459,1742268173134,-5733.51500979,7.266e-05,2]
[356323460,1742268173159,-300.0,7.299e-05,2]
[356323461,1742268173182,-150.0,7.3e-05,2]
[356323462,1742268173204,-264.0,7.3e-05,2]
[356323463,1742268173227,-528.0,7.3e-05,2]
[356323464,1742268173249,-1056.0,7.3e-05,2]
[356323465,1742268173272,-2111.0,7.3e-05,2]
[356323466,1742268173295,-2667.0,7.3e-05,2]
[356323467,1742268173317,-4109.0,7.3e-05,2]
[356323468,1742268173340,-4222.0,7.3e-05,2]
[356323469,1742268173363,-6523.0,7.3e-05,2]
[356323470,1742268173385,-150.0,7.3e-05,2]
[356323471,1742268173408,-888.6483677,7.397e-05,2]
[356323472,1742268173431,-250.0,7.414e-05,2]
[356323473,1742268173453,-420.0,8.029e-05,2]
[356323474,1742268173477,-500.0,8.218e-05,2]
[356323475,1742268173501,-500.0,8.218e-05,2]
[356323476,1742268173525,-522.17212099,8.218e-05,2]
[356323477,1742268173548,-500.0,8.218e-05,2]
[356323478,1742268173572,-500.0,8.218e-05,2]
[356323479,1742268173596,-190.77950177,8.218e-05,2]
[356323480,1742268173620,-193.6626937,8.218e-05,2]
[356323481,1742268173645,-500.0,8.219e-05,2]
[356323482,1742268173669,-500.0,8.219e-05,2]
[356323483,1742268173694,-500.0,8.219e-05,2]
[356323484,1742268173716,-533.83,8.219e-05,2]
[356323485,1742268173739,-500.0,8.219e-05,2]
[356323486,1742268173762,-500.0,8.219e-05,2]
[356323487,1742268173784,-500.0,8.219e-05,2]
[356323488,1742268173807,-500.0,8.219e-05,2]
[356323489,1742268173829,-500.0,8.219e-05,2]
[356323490,1742268173852,-549.04671447,8.219e-05,2]
[356323491,1742268173875,-500.0,8.219e-05,2]
[356323492,1742268173898,-500.0,8.219e-05,2]
[356323493,1742268173921,-500.0,8.219e-05,2]
[356323494,1742268173943,-500.0,8.219e-05,2]
[356323495,1742268173973,-500.0,8.219e-05,2]
[356323496,1742268174000,-574.98,8.219e-05,2]
[356323497,1742268174024,-500.0,8.219e-05,2]
[356323498,1742268174051,-500.0,8.219e-05,2]
[356323499,1742268174076,-718.9,8.219e-05,2]
[356323500,1742268174100,-556.16776933,8.219e-05,2]
[356323501,1742268174123,-500.0,8.219e-05,2]
[356323502,1742268174148,-527.15,8.219e-05,2]
[356323503,1742268174173,-876.38,8.219e-05,2]
[356323504,1742268174196,-500.0,8.219e-05,2]
[356323505,1742268174219,-500.0,8.219e-05,2]
[356323506,1742268174242,-500.0,8.219e-05,2]
[356323507,1742268174264,-792.13,8.219e-05,2]
[356323508,1742268174287,-500.0,8.219e-05,2]
[356323509,1742268174309,-500.0,8.219e-05,2]
[356323510,1742268174332,-891.91,8.219e-05,2]
[356323511,1742268174356,-839.28,8.219e-05,2]
[356323512,1742268174380,-952.83,8.219e-05,2]
[356323513,1742268174404,-923.5,8.219e-05,2]
[356323514,1742268174432,-500.0,8.219e-05,2]
[356323515,1742268174456,-645.35,8.219e-05,2]
[356323516,1742268174479,-2880.15,8.219e-05,2]
[356323517,1742268174503,-5005.05,8.219e-05,2]
[356323518,1742268174527,-833.41,8.219e-05,2]
[356323519,1742268174551,-500.0,8.219e-05,2]
[356323520,1742268174574,-500.0,8.219e-05,2]
[356323521,1742268174599,-500.0,8.219e-05,2]
[356323522,1742268174623,-500.0,8.219e-05,2]
[356323523,1742268174646,-618.26702625,8.219e-05,2]
[356323524,1742268174669,-644.87996128,8.219e-05,2]
[356323525,1742268174691,-7107.19,8.219e-05,2]
[356323526,1742268174715,-1055.37,8.219e-05,2]
[356323527,1742268174745,-500.0,8.219e-05,2]
[356323528,1742268174768,-1313.47,8.219e-05,2]
[356323529,1742268174792,-306.61956549,8.219e-05,2]
[356323530,1742268174814,-716.32,8.219e-05,2]
[356323531,1742268174838,-6424.54,8.219e-05,2]
[356323532,1742268174862,-1324.39,8.219e-05,2]
[356323533,1742268174885,-818.42,8.219e-05,2]
[356323534,1742268174907,-500.0,8.219e-05,2]
[356323535,1742268174931,-7057.95,8.219e-05,2]
[356323536,1742268174955,-1102.74,8.219e-05,2]
[356323537,1742268174977,-948.56,8.219e-05,2]
[356323538,1742268175004,-500.0,8.219e-05,2]
[356323539,1742268175028,-662.39,8.219e-05,2]
[356323540,1742268175053,-500.0,8.219e-05,2]
[356323541,1742268175077,-500.0,8.219e-05,2]
[356323542,1742268175099,-500.0,8.219e-05,2]
[356323543,1742268175122,-500.0,8.219e-05,2]
[356323544,1742268175146,-5425.74,8.219e-05,2]
[356323545,1742268175170,-776.1,8.219e-05,2]
[356323546,1742268175193,-500.0,8.219e-05,2]
[356323547,1742268175216,-500.0,8.219e-05,2]
[356323548,1742268175240,-733.07,8.219e-05,2]
[356323549,1742268175262,-500.0,8.219e-05,2]
[356323550,1742268175285,-1445.5,8.219e-05,2]
[356323551,1742268175309,-1503.28,8.219e-05,2]
[356323552,1742268175331,-500.0,8.219e-05,2]
[356323553,1742268175354,-1904.59,8.219e-05,2]
[356323554,1742268175378,-3782.98,8.219e-05,2]
[356323555,1742268175401,-3266.77,8.219e-05,2]
[356323556,1742268175426,-500.0,8.219e-05,2]
[356323557,1742268175450,-646.39,8.219e-05,2]
[356323558,1742268175474,-500.0,8.219e-05,2]
[356323559,1742268175497,-288.47382341,8.219e-05,2]
[356323560,1742268175519,-156.60994289,8.219e-05,2]
[356323561,1742268175542,-666.92,8.219e-05,2]
[356323562,1742268175566,-500.0,8.219e-05,2]
[356323563,1742268175589,-2804.51,8.219e-05,2]
[356323564,1742268175613,-904.62,8.219e-05,2]
[356323565,1742268175636,-500.0,8.219e-05,2]
[356323566,1742268175658,-500.0,8.219e-05,2]
[356323567,1742268175682,-592.12,8.219e-05,2]
[356323568,1742268175705,-1787.99,8.219e-05,2]
[356323569,1742268175730,-1616.86,8.219e-05,2]
[356323570,1742268175755,-156.60994289,8.31e-05,2]
[356323571,1742268175779,-1407.67621386,8.36e-05,2]
[356323572,1742268175804,-18653.24134618,8.389e-05,2]
[356323623,1742268631803,-1000.0,7.35e-05,2]
[356323628,1742268631860,-889.87526814,7.35e-05,2]
[356323654,1742268640004,-0.00150503,7.35e-05,2]
[356323675,1742268642917,-8110.12322683,7.35e-05,2]
[356323676,1742268642927,-250.0,7.413e-05,2]
[356323677,1742268642937,-300.0,7.441e-05,2]
[356323678,1742268642946,-193.6626938,8.218e-05,2]
[356323679,1742268642956,-300.0,8.218e-05,2]
[356323680,1742268642965,-505.9803249,8.219e-05,2]
[356323681,1742268642975,-500.0,8.219e-05,2]
[356323682,1742268642985,-500.0,8.219e-05,2]
[356323683,1742268642995,-500.0,8.219e-05,2]
[356323684,1742268643004,-500.0,8.219e-05,2]
[356323685,1742268643014,-500.0,8.219e-05,2]
[356323686,1742268643023,-500.0,8.219e-05,2]
[356323687,1742268643033,-500.0,8.219e-05,2]
[356323688,1742268643043,-500.0,8.219e-05,2]
[356323689,1742268643054,-500.0,8.219e-05,2]
[356323690,1742268643063,-500.0,8.219e-05,2]
[356323698,1742268643273,-500.0,8.219e-05,2]
[356323699,1742268643285,-551.02,8.219e-05,2]
[356323700,1742268643294,-500.0,8.219e-05,2]
[356323701,1742268643304,-649.87264194,8.219e-05,2]
[356323702,1742268643313,-384.90164775,8.219e-05,2]
[356323703,1742268643322,-18204.43946478,8.219e-05,2]
[356323704,1742268643381,-42.85851108,8.219e-05,2]
[356323705,1742268643392,-1021.64926611,8.219e-05,2]
[356323719,1742269398607,-840.0,0.00012999,7]
[356323721,1742269643063,-165.70437191,7.236e-05,2]
[356323722,1742269770149,-7542.39044515,7.236e-05,2]
[356323723,1742269770786,-164.340267,7.236e-05,2]
[356323729,1742269836599,-2127.56491594,7.236e-05,2]
[356323731,1742269836610,-300.0,7.397e-05,2]
[356323733,1742269836620,-1736.77535369,7.398e-05,2]
[356323761,1742269837911,-13511.58779352,7.398e-05,2]
[356323780,1742269840238,-2.01270786,7.398e-05,2]
[356323795,1742269843793,-9649.62414493,7.398e-05,2]
[356323796,1742269843803,-301.360619,7.449e-05,2]
[356323797,1742269843813,-2089.54234437,8.119e-05,2]
[356323798,1742269843823,-193.6626938,8.137e-05,2]
[356323799,1742269843832,-420.0,8.137e-05,2]
[356323800,1742269843842,-201.0,8.218e-05,2]
[356323803,1742269843852,-207.945687,8.219e-05,2]
[356323805,1742269843861,-500.0,8.219e-05,2]
[356323806,1742269843871,-624.13,8.219e-05,2]
[356323807,1742269843881,-500.0,8.219e-05,2]
[356323808,1742269843890,-500.0,8.219e-05,2]
[356323809,1742269843900,-500.0,8.219e-05,2]
[356323810,1742269843910,-500.0,8.219e-05,2]
[356323811,1742269843920,-500.0,8.219e-05,2]
[356323812,1742269843930,-500.0,8.219e-05,2]
[356323814,1742269843939,-500.0,8.219e-05,2]
[356323815,1742269843948,-686.48,8.219e-05,2]
[356323816,1742269843958,-500.0,8.219e-05,2]
[356323817,1742269843968,-500.0,8.219e-05,2]
[356323818,1742269843977,-500.0,8.219e-05,2]
[356323819,1742269843986,-500.0,8.219e-05,2]
[356323820,1742269843995,-500.0,8.219e-05,2]
[356323821,1742269844005,-500.0,8.219e-05,2]
[356323822,1742269844016,-582.04107366,8.219e-05,2]
[356323823,1742269844025,-500.0,8.219e-05,2]
[356323824,1742269844035,-511.58,8.219e-05,2]
[356323825,1742269844044,-500.0,8.219e-05,2]
[356323826,1742269844054,-500.0,8.219e-05,2]
[356323827,1742269844069,-500.0,8.219e-05,2]
[356323828,1742269844082,-500.0,8.219e-05,2]
[356323829,1742269844092,-500.0,8.219e-05,2]
[356323830,1742269844102,-500.0,8.219e-05,2]
[356323831,1742269844111,-500.0,8.219e-05,2]
[356323832,1742269844120,-500.0,8.219e-05,2]
[356323833,1742269844130,-500.0,8.219e-05,2]
[356323834,1742269844140,-500.0,8.219e-05,2]
[356323846,1742269844149,-500.0,8.219e-05,2]
[356323848,1742269844386,-1549.49,8.219e-05,2]
[356323850,1742269844396,-500.0,8.219e-05,2]
[356323852,1742269844406,-688.95,8.219e-05,2]
[356323853,1742269844416,-804.31,8.219e-05,2]
[356323854,1742269844426,-913.13,8.219e-05,2]
[356323855,1742269844435,-2103.0,8.219e-05,2]
[356323856,1742269844444,-623.85018934,8.219e-05,2]
[356323912,1742269949520,-155.00553299,7.272e-05,2]
[356323916,1742270115422,-200.73219737,7.182e-05,2]
[356323917,1742270219001,-274.58522049,7.111e-05,2]
[356323918,1742270234398,4357.73578544,0.0001515,120]
[356323922,1742270404519,-200.0,7.111e-05,2]
[356323923,1742270588716,-285.03659164,7.04e-05,2]
[356323924,1742270774701,-438.02753544,6.97e-05,2]
[356323925,1742270820877,-844.0,6.97e-05,2]
[356323926,1742270896306,-165.53246295,6.849e-05,2]
[356323927,1742270944703,-179.74606632,6.849e-05,2]
[356323928,1742270960527,-203.84027914,6.781e-05,2]
[356323930,1742271003831,-162.48044704,6.781e-05,2]
[356323983,1742271038085,-3781.18956142,6.781e-05,2]
[356323984,1742271038095,-300.0,6.848e-05,2]
[356323985,1742271038104,-9654.72147073,6.849e-05,2]
[356323986,1742271038114,-1767.76389583,7.182e-05,2]
[356323987,1742271038124,-94.99446701,7.272e-05,2]
[356323988,1742271038133,-24900.0,7.397e-05,2]
[356323989,1742271038143,-420.0,7.533e-05,2]
[356323990,1742271038152,-700.0,8.07e-05,2]
[356323991,1742271038162,-16066.83855184,8.119e-05,2]
[356323992,1742271038171,-193.6626938,8.137e-05,2]
[356323993,1742271038183,-187.69475299,8.218e-05,2]
[356323994,1742271038192,-151.0,8.219e-05,2]
[356323995,1742271038202,-500.0,8.219e-05,2]
[356323996,1742271038212,-296.26236535,8.219e-05,2]
[356323997,1742271038221,-500.0,8.219e-05,2]
[356323998,1742271038231,-500.0,8.219e-05,2]
[356323999,1742271038240,-500.0,8.219e-05,2]
[356324000,1742271038249,-508.18635651,8.219e-05,2]
[356324001,1742271038258,-236.12340129,8.219e-05,2]
[356324002,1742271038268,-500.0,8.219e-05,2]
[356324003,1742271038277,-512.1796084,8.219e-05,2]
[356324004,1742271038286,-521.1460383,8.219e-05,2]
[356324005,1742271038296,-805.15,8.219e-05,2]
[356324006,1742271038306,-500.0,8.219e-05,2]
[356324007,1742271038316,-500.0,8.219e-05,2]
[356324008,1742271038325,-201.0,8.219e-05,2]
[356324009,1742271038335,-201.0,8.219e-05,2]
[356324010,1742271038344,-500.0,8.219e-05,2]
[356324011,1742271038353,-500.0,8.219e-05,2]
[356324012,1742271038363,-546.61,8.219e-05,2]
[356324013,1742271038372,-500.0,8.219e-05,2]
[356324014,1742271038381,-500.0,8.219e-05,2]
[356324015,1742271038391,-500.0,8.219e-05,2]
[356324016,1742271038401,-510.20578113,8.219e-05,2]
[356324017,1742271038411,-500.0,8.219e-05,2]
[356324018,1742271038421,-521.63354423,8.219e-05,2]
[356324019,1742271038433,-500.0,8.219e-05,2]
[356324020,1742271038442,-500.0,8.219e-05,2]
[356324021,1742271038452,-500.0,8.219e-05,2]
[356324022,1742271038462,-500.0,8.219e-05,2]
[356324023,1742271038471,-507.23,8.219e-05,2]
[356324024,1742271038482,-500.0,8.219e-05,2]
[356324025,1742271038491,-500.0,8.219e-05,2]
[356324026,1742271038501,-2726.79,8.219e-05,2]
[356324027,1742271038512,-1505.76,8.219e-05,2]
[356324028,1742271038522,-165.88730943,8.219e-05,2]
[356324029,1742271038532,-791.63,8.219e-05,2]
[356324030,1742271038542,-500.0,8.219e-05,2]
[356324031,1742271038551,-895.91,8.219e-05,2]
[356324032,1742271038561,-659.96,8.219e-05,2]
[356324033,1742271038570,-500.0,8.219e-05,2]
[356324034,1742271038580,-425.3041182,8.219e-05,2]
[356324055,1742271040475,-0.00082093,8.218e-05,2]
[356324072,1742271043313,-5254.39662314,8.218e-05,2]
[356324074,1742271043323,-433.7158818,8.219e-05,2]
[356324075,1742271043332,-500.0,8.219e-05,2]
[356324076,1742271043341,-265.467891,8.219e-05,2]
[356324077,1742271043351,-2803.26,8.219e-05,2]
[356324078,1742271043360,-5126.2,8.219e-05,2]
[356324079,1742271043369,-505.19,8.219e-05,2]
[356324080,1742271043379,-265.467891,8.219e-05,2]
[356324081,1742271043389,-490.72018248,8.219e-05,2]
[356324082,1742271043398,-4876.17,8.219e-05,2]
[356324083,1742271043407,-2426.21,8.219e-05,2]
[356324084,1742271043417,-500.0,8.219e-05,2]
[356324085,1742271043427,-1032.23,8.219e-05,2]
[356324086,1742271043436,-598.12,8.219e-05,2]
[356324087,1742271043445,-1279.57,8.219e-05,2]
[356324088,1742271043455,-509.82374458,8.219e-05,2]
[356324089,1742271043465,-500.0,8.219e-05,2]
[356324090,1742271043475,-916.72,8.219e-05,2]
[356324091,1742271043484,-500.0,8.219e-05,2]
[356324092,1742271043494,-500.0,8.219e-05,2]
[356324093,1742271043504,-500.0,8.219e-05,2]
[356324094,1742271043514,-630.36455423,8.219e-05,2]
[356324095,1742271043709,-80.29738866,8.219e-05,2]
[356324114,1742271365673,-250.0,7.199e-05,2]
[356324115,1742271365695,-32.06692467,7.253e-05,2]
[356324116,1742271374154,-292.51829582,7.18e-05,2]
[356324117,1742271425208,-150.0,7.18e-05,2]
[356324118,1742271484339,-150.0,7.18e-05,2]
[356324123,1742271543600,-176.93304614,7.18e-05,2]
[356324124,1742271559291,-218.86736841,7.108e-05,2]
[356324126,1742271608981,-176.40567201,7.108e-05,2]
[356324127,1742271666000,-197.0,7.108e-05,2]
[356324177,1742272232356,-250.0,6.569e-05,2]
[356324179,1742272232367,-3400.94561762,6.897e-05,2]
[356324181,1742272232377,-358.9065528,7.018e-05,2]
[356324183,1742272232386,-300.0,7.252e-05,2]
[356324185,1742272232396,-10371.87535938,7.253e-05,2]
[356324192,1742272232467,-16958.16328095,7.253e-05,2]
[356324193,1742272232476,-11612.35644028,7.396e-05,2]
[356324195,1742272232487,-636.94,7.396e-05,2]
[356324215,1742272238272,-500.0,7.395e-05,2]
[356324216,1742272238281,-500.0,7.395e-05,2]
[356324217,1742272238290,-500.0,7.395e-05,2]
[356324218,1742272238300,-500.0,7.395e-05,2]
[356324219,1742272238309,-500.0,7.395e-05,2]
[356324220,1742272238318,-500.0,7.395e-05,2]
[356324221,1742272238329,-500.0,7.395e-05,2]
[356324222,1742272238342,-500.0,7.395e-05,2]
[356324224,1742272238351,-500.0,7.395e-05,2]
[356324226,1742272238361,-500.0,7.395e-05,2]
[356324227,1742272238371,-95.63298163,7.395e-05,2]
[356324245,1742272240612,-520.96402079,7.395e-05,2]
[356324246,1742272240623,-500.0,7.395e-05,2]
[356324247,1742272240633,-1633.1138536,7.396e-05,2]
[356324248,1742272240646,-763.96541151,7.396e-05,2]
[356324249,1742272240657,-24900.0,7.397e-05,2]
[356324250,1742272240668,-420.0,7.977e-05,2]
[356324251,1742272240679,-160576.93540199,8.2e-05,2]
[356324252,1742272240691,-261.09649526,8.218e-05,2]
[356324253,1742272240703,-151.0,8.219e-05,2]
[356324254,1742272240714,-151.0,8.219e-05,2]
[356324255,1742272240726,-201.55331347,8.219e-05,2]
[356324256,1742272240738,-151.0,8.219e-05,2]
[356324257,1742272240750,-151.0,8.219e-05,2]
[356324258,1742272240762,-151.0,8.219e-05,2]
[356324259,1742272240775,-151.0,8.219e-05,2]
[356324261,1742272240786,-179.585238,8.219e-05,2]
[356324263,1742272240797,-500.0,8.219e-05,2]
[356324265,1742272240807,-499.21554014,8.219e-05,2]
[356324267,1742272240818,-501.58736428,8.219e-05,2]
[356324268,1742272240829,-516.36646374,8.219e-05,2]
[356324269,1742272240840,-502.87556187,8.219e-05,2]
[356324270,1742272240851,-507.6461638,8.219e-05,2]
[356324271,1742272240864,-516.82929116,8.219e-05,2]
[356324272,1742272240876,-500.0,8.219e-05,2]
[356324273,1742272240886,-503.23400154,8.219e-05,2]
[356324274,1742272240896,-179.95585825,8.219e-05,2]
[356324275,1742272240917,-324.70871832,8.219e-05,2]
[356324276,1742272240927,-508.55958559,8.219e-05,2]
[356324277,1742272240939,-813.27,8.219e-05,2]
[356324278,1742272240949,-500.0,8.219e-05,2]
[356324279,1742272240960,-500.0,8.219e-05,2]
[356324280,1742272240971,-500.0,8.219e-05,2]
[356324281,1742272240981,-500.0,8.219e-05,2]
[356324282,1742272240994,-500.0,8.219e-05,2]
[356324283,1742272241004,-500.0,8.219e-05,2]
[356324284,1742272241015,-500.0,8.219e-05,2]
[356324285,1742272241026,-500.0,8.219e-05,2]
[356324286,1742272241037,-523.84,8.219e-05,2]
[356324287,1742272241050,-500.0,8.219e-05,2]
[356324288,1742272241060,-500.0,8.219e-05,2]
[356324289,1742272241071,-500.0,8.219e-05,2]
[356324290,1742272241082,-500.0,8.219e-05,2]
[356324291,1742272241094,-500.0,8.219e-05,2]
[356324292,1742272241104,-500.0,8.219e-05,2]
[356324293,1742272241115,-500.0,8.219e-05,2]
[356324294,1742272241126,-410.75512211,8.219e-05,2]
[356324295,1742272241137,-500.0,8.219e-05,2]
[356324296,1742272241148,-513.52649349,8.219e-05,2]
[356324297,1742272241160,-500.0,8.219e-05,2]
[356324298,1742272241170,-223.53262621,8.219e-05,2]
[356324299,1742272241292,-0.00120324,8.219e-05,2]
[356324322,1742272243456,-276.46617055,8.219e-05,2]
[356324323,1742272243468,-172.9818986,8.219e-05,2]
[356324324,1742272243478,-500.0,8.219e-05,2]
[356324325,1742272243489,-500.0,8.219e-05,2]
[356324326,1742272243501,-500.0,8.219e-05,2]
[356324327,1742272243512,-697.22,8.219e-05,2]
[356324328,1742272243522,-4969.66,8.219e-05,2]
[356324329,1742272243533,-779.48,8.219e-05,2]
[356324330,1742272243545,-2052.7,8.219e-05,2]
[356324331,1742272243556,-500.0,8.219e-05,2]
[356324333,1742272243566,-500.0,8.219e-05,2]
[356324335,1742272243577,-500.0,8.219e-05,2]
[356324336,1742272243588,-879.42,8.219e-05,2]
[356324337,1742272243599,-823.23,8.219e-05,2]
[356324338,1742272243610,-500.0,8.219e-05,2]
[356324339,1742272243621,-2729.39,8.219e-05,2]
[356324340,1742272243632,-500.0,8.219e-05,2]
[356324341,1742272243643,-4825.95,8.219e-05,2]
[356324342,1742272243654,-500.0,8.219e-05,2]
[356324343,1742272243665,-500.0,8.219e-05,2]
[356324344,1742272243675,-500.0,8.219e-05,2]
[356324345,1742272243685,-1010.05,8.219e-05,2]
[356324346,1742272243694,-500.0,8.219e-05,2]
[356324347,1742272243703,-1247.09,8.219e-05,2]
[356324348,1742272243713,-899.36,8.219e-05,2]
[356324349,1742272243722,-7688.93,8.219e-05,2]
[356324350,1742272243731,-500.0,8.219e-05,2]
[356324351,1742272243741,-500.0,8.219e-05,2]
[356324352,1742272243756,-941.93,8.219e-05,2]
[356324353,1742272243767,-627.58992495,8.219e-05,2]
[356324354,1742272243776,-828.5,8.219e-05,2]
[356324355,1742272243786,-500.0,8.219e-05,2]
[356324356,1742272243796,-1310.87,8.219e-05,2]
[356324357,1742272243806,-6337.48,8.219e-05,2]
[356324358,1742272243816,-906.49,8.219e-05,2]
[356324359,1742272243826,-500.0,8.219e-05,2]
[356324360,1742272244089,-5344.5874317,8.219e-05,2]
[356324380,1742272246347,-1647.4525683,8.219e-05,2]
[356324381,1742272246357,-851.95,8.219e-05,2]
[356324382,1742272246367,-930.53,8.219e-05,2]
[356324383,1742272246377,-743.77,8.219e-05,2]
[356324384,1742272246386,-180.67951577,8.219e-05,2]
[356324385,1742272246396,-500.0,8.219e-05,2]
[356324386,1742272246406,-676.46,8.219e-05,2]
[356324387,1742272246415,-618.46,8.219e-05,2]
[356324388,1742272246424,-702.53,8.219e-05,2]
[356324389,1742272246434,-500.0,8.219e-05,2]
[356324390,1742272246443,-346.21541909,8.219e-05,2]
[356324391,1742272246452,-1468.6,8.219e-05,2]
[356324393,1742272246461,-500.0,8.219e-05,2]
[356324394,1742272246470,-1831.62177324,8.219e-05,2]
[356324395,1742272246482,-3548.20822676,8.219e-05,2]
[356324396,1742272246492,-500.0,8.219e-05,2]
[356324397,1742272246501,-3243.34,8.219e-05,2]
[356324398,1742272246510,-500.0,8.219e-05,2]
[356324399,1742272246519,-910.68,8.219e-05,2]
[356324400,1742272246528,-1913.27,8.219e-05,2]
[356324401,1742272246537,-384.50177324,8.219e-05,2]
[356324481,1742273432708,-197.0,7.253e-05,2]
[356324482,1742273432719,-165.654635,7.27e-05,2]
[356324483,1742273432727,-134.53622989,7.452e-05,2]
[356324484,1742273432764,-31.11840511,7.452e-05,2]
[356324485,1742273432773,-165.654635,7.634e-05,2]
[356324486,1742273432782,-300.0,8.217e-05,2]
[356324487,1742273432790,-337.59651478,8.218e-05,2]
[356324499,1742273438550,-363.44635711,8.218e-05,2]
[356324500,1742273438560,-302.0,8.218e-05,2]
[356324501,1742273438570,-500.0,8.218e-05,2]
[356324502,1742273438579,-290.75704142,8.218e-05,2]
[356324503,1742273438588,-500.0,8.218e-05,2]